Workbook

Sheet Blank

Sheet Start

Sheet Calcolo1
C1: Calcolo contributo art. 1 D.L. n. 41/2021
C5: Cognome e nome / Denominazione | S5: Bianchi Simone
C8: Tipologia soggetto | S8: Persona fisica
C11: Attività cessata entro il 23/03/2021 | Z11: NO
C14: Attività iniziata dopo il 23/03/2021 | Z14: NO
AG16: =IF(Riservato1!H8=1,Riservato1!C27&TEXT(Riservato1!H17,"#.#0"),"Contributo non spettante!") -> Contributo 50%: € 1.583
C17: L'attività è iniziata dopo il 01/01/2019? | Z17: NO | BF17: =IF(Z17="SI",1,0) -> 0
C20: Inserire la data di inizio attività | X20: 2020-05-01
C24: Ricavi 2019 | V24: 120000 | BF24: =IF(AND(Z17="SI",X20>=Riservato1!A5),1,0) -> 0
C27: Fatturato 2019 | V27: 120000
C30: Fatturato 2020 | V30: 82000
C33: Mesi rilevanti | V33: =Riservato1!D9 -> 12
C36: Media mensile 2019 | V36: =Riservato1!D10 -> 10000
C39: Media mensile 2020 | V39: =Riservato1!D11 -> 6833.333333
C42: Riduzione fatturato | V42: =Riservato1!D12 -> 0.3166666667

Sheet Normativa1
B2: Art. 1 D.L. 41/2021 Contributo a fondo perduto in favore degli operatori economici [...] 1. Al fine di sostenere gli operatori economici colpiti dall’emergenza epidemiologica «Covid-19», è riconosciuto un contributo a fondo perduto a favore dei soggetti titolari di partita IVA, residenti o stabiliti nel territorio dello Stato, che svolgono attività d’impresa, arte o professione o producono reddito agrario. 2. Il contributo a fondo perduto di cui al comma 1 nonspetta, in ogni caso, ai soggetti la cui attività risulti cessata alla data di entrata in vigore del presente decreto, ai soggetti che hanno attivato la partita IVA dopo l’entrata in vigore del presente decreto, agli enti pubblici di cui all’articolo 74 nonché ai soggetti di cui all’articolo 162 - bis del testo unico delle imposte sui redditi approvato con decreto del Presidente della Repubblica 22 dicembre 1986, n. 917. 3. Il contributo spetta esclusivamente ai soggetti titolari di reddito agrario di cui all’articolo 32 del citato testo unico delle imposte sui redditi, nonché ai soggetti con ricavi di cui all’articolo 85, comma 1, lettere a) e b) , del testo unico delle imposte sui redditi approvato con decreto del Presidente della Repubblica 22 dicembre 1986, n. 917, o compensi di cui all’articolo 54, comma 1, del citato testo unico non superiori a 10 milioni di euro nel secondo periodo d’imposta antecedente a quello di entrata in vigore del presente decreto. 4. Il contributo a fondo perduto spetta a condizione che l’ammontare medio mensile del fatturato e dei corrispettivi dell’anno 2020 sia inferiore almeno del 30 per cento rispetto all’ammontare medio mensile del fatturato e dei corrispettivi dell’anno 2019. Al fine di determinare correttamente i predetti importi, si fa riferimento alla data di effettuazione dell’operazione di cessione di beni o di prestazione dei servizi. Ai soggetti che hanno attivato la partita IVA dal 1° gennaio 2019 il contributo spetta anche in assenza dei requisiti di cui al presente comma. 5. L’ammontare del contributo a fondo perduto è determinato in misura pari all’importo ottenuto applicando una percentuale alla differenza tra l’ammontare medio mensile del fatturato e dei corrispettivi dell’anno 2020 e l’ammontare medio mensile del fatturato e dei corrispettivi dell’anno 2019 come segue: a) sessanta per cento per i soggetti con ricavi e compensi indicati al comma 3 non superiori a centomila euro; b) cinquanta per cento per i soggetti con ricavi o compensi indicati al comma 3 superiori a centomila euro e fino a quattrocentomila euro; c) quaranta per cento per i soggetti con ricavi o compensi indicati al comma 3 superiori a quattrocentomila euro e fino a 1 milione di euro; d) trenta per cento per i soggetti con ricavi o compensi indicati al comma 3 superiori a 1 milione di euro e fino a 5 milioni di euro; e) venti per cento per i soggetti con ricavi o compensi indicati al comma 3 superiori a 5 milioni di euro e fino a 10 milioni di euro. Per i soggetti che hanno attivato la partita IVA dal 1° gennaio 2019, ai fini della media di cui al primo periodo, rilevano i mesi successivi a quello di attivazione della partita IVA. 6. Fermo quanto disposto dal comma 2, per tutti i soggetti, compresi quelli che hanno attivato la partita IVA dal 1° gennaio 2020, l’importo del contributo di cui al presente articolo non può essere superiore a centocinquantamila euro ed è riconosciuto, comunque, per un importo non inferiore a mille euro per le persone fisiche e a duemila euro per i soggetti diversi dalle persone fisiche. 7. Il contributo di cui al presente articolo non concorre alla formazione della base imponibile delle imposte sui redditi, non rileva altresì ai fini del rapporto di cui agli articoli 61 e 109, comma 5, del testo unico delle imposte sui redditi, di cui al decreto del Presidente della Repubblica 22 dicembre 1986, n. 917 e non concorre alla formazione del valore della produzione netta, di cui al decreto legislativo 15 dicembre 1997, n. 446. In alternativa, a scelta irrevocabile del contribuente, il contributo a fondo perduto è riconosciuto nella sua totalità sotto forma di credito d’imposta, da utilizzare esclusivamente in compensazione ai sensi dell’articolo 17 del decreto legislativo 9 luglio 1997, n. 241, presentando il modello F24 esclusivamente tramite i servizi telematici resi disponibili dall’Agenzia delle Entrate. Ai fini di cui al secondo periodo, non si applicano i limiti di cui all’articolo 31, comma 1, del decreto- legge 31 maggio 2010, n. 78, convertito, con modificazioni, dalla legge 30 luglio 2010, n. 122, all’articolo 34 della legge 23 dicembre 2000, n. 388, e all’articolo 1, comma 53, della legge 24 dicembre 2007, n. 244. 8. Al fine di ottenere il contributo a fondo perduto, i soggetti interessati presentano, esclusivamente in via telematica, una istanza all’Agenzia delle entrate con l’indicazione della sussistenza dei requisiti definiti dai precedenti commi. L’istanza può essere presentata, per conto del soggetto interessato, anche da un intermediario di cui all’articolo 3, comma 3, del decreto del Presidente della Repubblica 22 luglio 1998, n. 322 delegato al servizio del cassetto fiscale dell’Agenzia delle entrate. L’istanza deve essere presentata, a pena di decadenza, entro sessanta giorni dalla data di avvio della procedura telematica per la presentazione della stessa. Le modalità di effettuazione dell’istanza, il suo contenuto informativo, i termini di presentazione della stessa e ogni altro elemento necessario all’attuazione delle disposizioni del presente articolo sono definiti con provvedimento del Direttore dell’Agenzia delle entrate. 9. Si applicano, in quanto compatibili, le disposizioni di cui all’articolo 25, commi da 9 a 14 del decreto-legge 19 maggio 2020 n. 34, convertito, con modificazioni dalla legge 17 luglio 2020, n. 77, con riferimento alle modalità di erogazione del contributo, al regime sanzionatorio e alle attività di controllo.

Sheet Elenco1
B1: Elenco Clienti per richiesta contributo a fondo perduto
B4: Prog. | C4: Cliente | D4: Fatturato 2019 | E4: Fatturato 2020 | F4: Riduzione su dato mensile | G4: Spettanza contributo | H4: Misura contributo | I4: Domanda presentata
C5: ***** lasciare riga! *****
B6: 1 | I6: NO | K6: =IF(G6="NO",0,IF(I6="SI",1,2)) -> 2
B7: =B6+1 -> 2 | I7: NO | K7: =IF(G7="NO",0,IF(I7="SI",1,2)) -> 2
B8: =B7+1 -> 3 | I8: NO | K8: =IF(G8="NO",0,IF(I8="SI",1,2)) -> 2
B9: 4 | I9: NO | K9: 2
B10: 5 | I10: NO | K10: 2
B11: 6 | I11: NO | K11: 2
B12: 7 | I12: NO | K12: 2
B13: 8 | I13: NO | K13: 2
B14: 9 | I14: NO | K14: 2
B15: 10 | I15: NO | K15: 2
B16: 11 | I16: NO | K16: 2
B17: 12 | I17: NO | K17: 2
B18: 13 | I18: NO | K18: 2
B19: 14 | I19: NO | K19: 2
B20: 15 | I20: NO | K20: 2
B21: 16 | I21: NO | K21: 2
B22: 17 | I22: NO | K22: 2
B23: 18 | I23: NO | K23: 2
B24: 19 | I24: NO | K24: 2
B25: 20 | I25: NO | K25: 2
B26: 21 | I26: NO | K26: 2
B27: 22 | I27: NO | K27: 2
B28: 23 | I28: NO | K28: 2
B29: 24 | I29: NO | K29: 2
B30: 25 | I30: NO | K30: 2
B31: 26 | I31: NO | K31: 2
B32: 27 | I32: NO | K32: 2
B33: 28 | I33: NO | K33: 2
B34: 29 | I34: NO | K34: 2
B35: 30 | I35: NO | K35: 2
B36: 31 | I36: NO | K36: 2
B37: 32 | I37: NO | K37: 2
B38: 33 | I38: NO | K38: 2
B39: 34 | I39: NO | K39: 2
B40: 35 | I40: NO | K40: 2
B41: 36 | I41: NO | K41: 2
B42: 37 | I42: NO | K42: 2
B43: 38 | I43: NO | K43: 2
B44: 39 | I44: NO | K44: 2
B45: 40 | I45: NO | K45: 2
B46: 41 | I46: NO | K46: 2
B47: 42 | I47: NO | K47: 2
B48: 43 | I48: NO | K48: 2
B49: 44 | I49: NO | K49: 2
B50: 45 | I50: NO | K50: 2
B51: 46 | I51: NO | K51: 2
B52: 47 | I52: NO | K52: 2
B53: 48 | I53: NO | K53: 2
B54: 49 | I54: NO | K54: 2
B55: 50 | I55: NO | K55: 2

Sheet Riservato1
A2: Limiti rilevanti: | C2: Persona fisica | D2: 1000 | G2: **************** Determinazione dell'an ****************
A3: 2019-01-01 | C3: Diverso da persona fisica | D3: 2000
A4: 2021-03-23 | G4: Ricavi > 10 mln | H4: =IF(ricavi2019_1>limite1,0,1) -> 1
A5: 2019-12-01 | C5: SI | D5: NO | G5: Attività cessata | H5: =IF(Calcolo1!Z11="SI",0,1) -> 1
G6: Attività iniziata dopo | H6: =IF(Calcolo1!Z14="SI",0,1) -> 1
C7: =Calcolo1!C27 -> Fatturato 2019 | D7: =IF(AND(Calcolo1!Z17="SI",Calcolo1!X20>=A5),0,fatturato2019_1) -> 120000 | G7: Riduzione fatturato | H7: =IF(AND(Calcolo1!Z17="SI",Calcolo1!X20>=A5),1,IF(AND(Calcolo1!Z17="SI",D12<30%),1,IF(D12>=30%,1,0))) -> 1
C8: =Calcolo1!C30 -> Fatturato 2020 | D8: =IF(AND(Calcolo1!Z17="SI",Calcolo1!X20>=A5),0,fatturato2020_1) -> 82000 | G8: Prodotto =====> | H8: =H4*H5*H6*H7 -> 1
C9: =Calcolo1!C33 -> Mesi rilevanti | D9: =IF(Calcolo1!Z17="NO",12,IF(AND(Calcolo1!Z17="SI",Calcolo1!X20<A5),12-MONTH(Calcolo1!X20),0)) -> 12
C10: =Calcolo1!C36 -> Media mensile 2019 | D10: =IFERROR(D7/D9,0) -> 10000
C11: =Calcolo1!C39 -> Media mensile 2020 | D11: =D8/12 -> 6833.333333
C12: =Calcolo1!C42 -> Riduzione fatturato | D12: =IFERROR(-D11/D10+1,0) -> 0.3166666667 | G12: **************** Determinazione del quantum ****************
C14: **************** Soglie ricavi per aliquota **************** | G14: Aliquota contributo | H14: =IF(ricavi2019_1>D19,0,IF(ricavi2019_1>D18,E19,IF(ricavi2019_1>D17,E18,IF(ricavi2019_1>D16,E17,IF(ricavi2019_1>D15,E16,E15))))) -> 0.5
C15: 0 | D15: 100000 | E15: 0.6 | G15: Contributo potenziale | H15: =(D10-D11)*H14 -> 1583.333333
C16: =D15 -> 100000 | D16: 400000 | E16: 0.5 | G16: Limite minimo | H16: =IF(Calcolo1!S8=C2,D2,D3)*H8 -> 1000
C17: =D16 -> 400000 | D17: 1000000 | E17: 0.4 | G17: Contributo effettivo | H17: =MIN(H8*IF(AND(Calcolo1!Z17="SI",Calcolo1!X20>=A5),H16,IF(AND(Calcolo1!Z17="SI",D12<30%),H16,IF(D11>=D10,0,MAX(H15,H16)))),150000) -> 1583.333333
C18: =D17 -> 1000000 | D18: 5000000 | E18: 0.3
C19: 5000000 | D19: 10000000 | E19: 0.2
C22: ***** Dati per macro *****
C23: =Elenco1!C4 -> Cliente | D23: =Elenco1!D4 -> Fatturato 2019 | E23: =Elenco1!E4 -> Fatturato 2020 | F23: =Elenco1!F4 -> Riduzione su dato mensile | G23: =Elenco1!G4 -> Spettanza contributo | H23: =Elenco1!H4 -> Misura contributo
C24: =Calcolo1!S5 -> Bianchi Simone | D24: =D7 -> 120000 | E24: =D8 -> 82000 | F24: =D12 -> 0.3166666667 | G24: =IF(H8=0,"NO","SI") -> SI | H24: =H17 -> 1583.333333
C26: ***** Misura contributo *****
C27: =IF(AND(H8=1,H17=H16),"Contributo fisso: € ",IF(AND(H8=1,H17=150000),"Contributo max: € ",IF(AND(H8=1,H14=E15),"Contributo 60%: € ",IF(AND(H8=1,H14=E16),"Contributo 50%: € ",IF(AND(H8=1,H14=E17),"Contributo 40%: € ",IF(AND(H8=1,H14=E18),"Contributo 30%: € ","Contributo 20%: € ")))))) -> Contributo 50%: €
B29: contrsi1 | C29: =IF(H8=1,B29,B30) -> contrsi1
B30: contrno1

Sheet Calcolo2
C1: Calcolo contributo art. 1 D.L. n. 73/2021
C5: Cognome e nome / Denominazione | S5: Russo Giuseppe
C8: Tipologia soggetto | S8: Persona fisica
C11: Attività cessata entro il 25/05/2021 | Z11: NO
C14: Attività iniziata dopo il 23/03/2021 | Z14: NO
AG16: =IF(Riservato2!H8=1,CONCATENATE(Riservato2!C39,Riservato2!C41,Riservato2!C42,Riservato2!C43),"Contributo non spettante!") -> Contributo 50%: € 1.583, di cui importo automatico € 1.000
C17: Importo contributo percepito D.L. Sostegni | V17: 1000 | BF17: =IF(V17="SI",1,0) -> 0
C20: Data inizio attività (se successiva 01/04/19)
C24: Ricavi 2019 | V24: 120000 | BF24: =IF(AND(V17="SI",V20>=Riservato1!A5),1,0) -> 0
C27: Fatturato 01/04/2019 - 31/03/2020 | V27: 110000
C30: Fatturato 01/04/2020 - 31/03/2021 | V30: 72000
C33: Mesi rilevanti | V33: =Riservato2!D9 -> 12
C36: Media mensile 2019/2020 | V36: =Riservato2!D10 -> 9166.666667
C39: Media mensile 2020/2021 | V39: =Riservato2!D11 -> 6000
C42: Riduzione fatturato | V42: =Riservato2!D12 -> 0.3454545455

Sheet Normativa2
B2: Art. 1 D.L. 73/2021 Contributo a fondo perduto [...] 5. Al fine di sostenere gli operatori economici maggiormente colpiti dall'emergenza epidemiologica "Covid-19", è riconosciuto un contributo a fondo perduto a favore di tutti i soggetti che svolgono attività d'impresa, arte o professione o che producono reddito agrario, titolari di partita IVA residenti o stabiliti nel territorio dello Stato. Il contributo di cui al presente comma è alternativo a quello di cui ai commi da 1 a 3. I soggetti che, a seguito della presentazione dell'istanza per il riconoscimento del contributo di cui all'articolo 1 del decreto-legge 22 marzo 2021, n. 41, abbiano beneficiato del contributo di cui ai commi da 1 a 3, potranno ottenere l'eventuale maggior valore del contributo determinato ai sensi del presente comma. In tal caso, il contributo già corrisposto o riconosciuto sotto forma di credito d'imposta dall'Agenzia delle Entrate ai sensi dei commi da 1 a 3 verrà scomputato da quello da riconoscere ai sensi del presente comma. Se dall'istanza per il riconoscimento del contributo di cui al presente comma emerge un contributo inferiore rispetto a quello spettante ai sensi dei commi da 1 a 3, l'Agenzia non darà seguito all'istanza stessa. 6. Il contributo a fondo perduto di cui al comma 5 non spetta, in ogni caso, ai soggetti la cui partita IVA risulti non attiva alla data di entrata in vigore del presente decreto-legge, agli enti pubblici di cui all'articolo 74, nonché ai soggetti di cui all'articolo 162-bis del Testo unico delle imposte sui redditi approvato con decreto del Presidente della Repubblica 22 dicembre 1986, n. 917. 7. Il contributo di cui al comma 5 spetta esclusivamente ai soggetti titolari di reddito agrario di cui all'articolo 32 del citato Testo unico delle imposte sui redditi, nonché ai soggetti con ricavi di cui all'articolo 85, comma 1, lettere a) e b), o compensi di cui all'articolo 54, comma 1, del Testo unico delle imposte sui redditi non superiori a 10 milioni di euro nel secondo periodo d'imposta antecedente a quello di entrata in vigore del presente decreto. 8. Il contributo di cui al comma 5 spetta a condizione che l'ammontare medio mensile del fatturato e dei corrispettivi del periodo dal 1° aprile 2020 al 31 marzo 2021 sia inferiore almeno del 30 per cento rispetto all'ammontare medio mensile del fatturato e dei corrispettivi del periodo dal 1° aprile 2019 al 31 marzo 2020. Al fine di determinare correttamente i predetti importi, si fa riferimento alla data di effettuazione dell'operazione di cessione di beni o di prestazione dei servizi. 9. Per i soggetti che hanno beneficiato del contributo a fondo perduto di cui all'articolo 1 del decreto-legge 22 marzo 2021, n. 41, l'ammontare del contributo di cui al comma 5 è determinato in misura pari all'importo ottenuto applicando una percentuale alla differenza tra l'ammontare medio mensile del fatturato e dei corrispettivi del periodo dal 1° aprile 2020 al 31 marzo 2021 e l'ammontare medio mensile del fatturato e dei corrispettivi del periodo dal 1° aprile 2019 al 31 marzo 2020 come segue: a) sessanta per cento per i soggetti con ricavi e compensi indicati al comma 7 non superiori a centomila euro; b) cinquanta per cento per i soggetti con ricavi o compensi indicati al comma 7 superiori a centomila euro e fino a quattrocentomila euro; c) quaranta per cento per i soggetti con ricavi o compensi indicati al comma 7 superiori a quattrocentomila euro e fino a 1 milione di euro; d) trenta per cento per i soggetti con ricavi o compensi indicati al comma 7 superiori a 1 milione di euro e fino a 5 milioni di euro; e) venti per cento per i soggetti con ricavi o compensi indicati al comma 7 superiori a 5 milioni di euro e fino a 10 milioni di euro. 10. Per i soggetti che non hanno beneficiato del contributo a fondo perduto di cui all'articolo 1 del decreto-legge 22 marzo 2021, n. 41, l'ammontare del contributo di cui al comma 5 è determinato in misura pari all'importo ottenuto applicando una percentuale alla differenza tra l'ammontare medio mensile del fatturato e dei corrispettivi del periodo dal 1° aprile 2020 al 31 marzo 2021 e l'ammontare medio mensile del fatturato e dei corrispettivi del periodo dal 1° aprile 2019 al 31 marzo 2020 come segue: a) novanta per cento per i soggetti con ricavi e compensi indicati al comma 7 non superiori a centomila euro; b) settanta per cento per i soggetti con ricavi o compensi indicati al comma 7 superiori a centomila euro e fino a quattrocentomila euro; c) cinquanta per cento per i soggetti con ricavi o compensi indicati al comma 7 superiori a quattrocentomila euro e fino a 1 milione di euro; d) quaranta per cento per i soggetti con ricavi o compensi indicati al comma 7 superiori a 1 milione di euro e fino a 5 milioni di euro; e) trenta per cento per i soggetti con ricavi o compensi indicati al comma 7 superiori a 5 milioni di euro e fino a 10 milioni di euro. 11. Per tutti i soggetti, l'importo del contributo di cui al comma 5 non può essere superiore a centocinquantamila euro. 12. Il contributo di cui al comma 5 non concorre alla formazione della base imponibile delle imposte sui redditi, non rileva altresì ai fini del rapporto di cui agli articoli 61 e 109, comma 5, del Testo unico delle imposte sui redditi approvato con decreto del Presidente della Repubblica 22 dicembre 1986, n. 917, e non concorre alla formazione del valore della produzione netta, di cui al decreto legislativo 15 dicembre 1997, n. 446. A scelta irrevocabile del contribuente, il contributo a fondo perduto è riconosciuto nella sua totalità sotto forma di credito d'imposta, da utilizzare esclusivamente in compensazione ai sensi dell'articolo 17 del decreto legislativo 9 luglio 1997, n. 241, presentando il modello F24 esclusivamente tramite i servizi telematici resi disponibili dall'Agenzia delle Entrate. Ai fini di cui al periodo precedente, non si applicano i limiti di cui all'articolo 31, comma 1, del decreto-legge 31 maggio 2010, n. 78, convertito, con modificazioni, dalla legge 30 luglio 2010, n. 122, all'articolo 34 della legge 23 dicembre 2000, n. 388, e all'articolo 1, comma 53, della legge 24 dicembre 2007, n. 244. 13. Al fine di ottenere il contributo di cui al comma 5, i soggetti interessati presentano, esclusivamente in via telematica, un'istanza all'Agenzia delle entrate con l'indicazione della sussistenza dei requisiti definiti dai commi da 5 a 10. L'istanza può essere presentata, per conto del soggetto interessato, anche da un intermediario di cui all'articolo 3, comma 3, del decreto del Presidente della Repubblica 22 luglio 1998, n. 322, delegato al servizio del cassetto fiscale dell'Agenzia delle Entrate. L'istanza deve essere presentata, a pena di decadenza, entro sessanta giorni dalla data di avvio della procedura telematica per la presentazione della stessa. Le modalità di effettuazione dell'istanza, il suo contenuto informativo, i termini di presentazione della stessa e ogni altro elemento necessario all'attuazione delle disposizioni dei commi da 5 a 12 sono definiti con provvedimento del direttore dell'Agenzia delle Entrate, che individua, altresì, gli elementi da dichiarare nell'istanza al fine del rispetto delle condizioni e dei limiti previsti dalle Sezioni 3.1 «Aiuti di importo limitato» e 3.12 «Aiuti sotto forma di sostegno a costi fissi non coperti» della Comunicazione della Commissione europea del 19 marzo 2020 C(2020) 1863 final «Quadro temporaneo per le misure di aiuto di Stato a sostegno dell'economia nell'attuale emergenza del COVID-19», e successive modificazioni. Per i soggetti obbligati alla presentazione delle comunicazioni della liquidazione periodica IVA di cui all'articolo 21-bis del decreto-legge 31 maggio 2010, n. 78, l'istanza può essere presentata esclusivamente dopo la presentazione della comunicazione riferita al primo trimestre 2021. 14. Gli oneri derivanti dalle disposizioni di cui ai commi da 5 a 13 sono valutati in 3.400 milioni di euro per l'anno 2021. 15. Ai fini del contributo di cui ai commi da 5 a 13 si applicano, in quanto compatibili, le disposizioni di cui all'articolo 1, commi 9 e da 13 a 17, del decreto-legge 22 marzo 2021, n. 41.

Sheet Elenco2
B1: Elenco Clienti per richiesta contributo a fondo perduto
B4: Prog. | C4: Cliente | D4: Fatturato 19/20 | E4: Fatturato 20/21 | F4: Riduzione su dato mensile | G4: Spettanza contributo | H4: Misura contributo | I4: Domanda presentata
C5: ***** lasciare riga! *****
B6: 1 | I6: NO | K6: =IF(G6="NO",0,IF(I6="SI",1,2)) -> 2
B7: =B6+1 -> 2 | I7: NO | K7: =IF(G7="NO",0,IF(I7="SI",1,2)) -> 2
B8: =B7+1 -> 3 | I8: NO | K8: =IF(G8="NO",0,IF(I8="SI",1,2)) -> 2
B9: 4 | I9: NO | K9: 2
B10: 5 | I10: NO | K10: 2
B11: 6 | I11: NO | K11: 2
B12: 7 | I12: NO | K12: 2
B13: 8 | I13: NO | K13: 2
B14: 9 | I14: NO | K14: 2
B15: 10 | I15: NO | K15: 2
B16: 11 | I16: NO | K16: 2
B17: 12 | I17: NO | K17: 2
B18: 13 | I18: NO | K18: 2
B19: 14 | I19: NO | K19: 2
B20: 15 | I20: NO | K20: 2
B21: 16 | I21: NO | K21: 2
B22: 17 | I22: NO | K22: 2
B23: 18 | I23: NO | K23: 2
B24: 19 | I24: NO | K24: 2
B25: 20 | I25: NO | K25: 2
B26: 21 | I26: NO | K26: 2
B27: 22 | I27: NO | K27: 2
B28: 23 | I28: NO | K28: 2
B29: 24 | I29: NO | K29: 2
B30: 25 | I30: NO | K30: 2
B31: 26 | I31: NO | K31: 2
B32: 27 | I32: NO | K32: 2
B33: 28 | I33: NO | K33: 2
B34: 29 | I34: NO | K34: 2
B35: 30 | I35: NO | K35: 2
B36: 31 | I36: NO | K36: 2
B37: 32 | I37: NO | K37: 2
B38: 33 | I38: NO | K38: 2
B39: 34 | I39: NO | K39: 2
B40: 35 | I40: NO | K40: 2
B41: 36 | I41: NO | K41: 2
B42: 37 | I42: NO | K42: 2
B43: 38 | I43: NO | K43: 2
B44: 39 | I44: NO | K44: 2
B45: 40 | I45: NO | K45: 2
B46: 41 | I46: NO | K46: 2
B47: 42 | I47: NO | K47: 2
B48: 43 | I48: NO | K48: 2
B49: 44 | I49: NO | K49: 2
B50: 45 | I50: NO | K50: 2
B51: 46 | I51: NO | K51: 2
B52: 47 | I52: NO | K52: 2
B53: 48 | I53: NO | K53: 2
B54: 49 | I54: NO | K54: 2
B55: 50 | I55: NO | K55: 2

Sheet Riservato2
A2: Date rilevanti: | C2: Persona fisica | D2: 1000 | G2: **************** Determinazione dell'an ****************
A3: 2019-04-01 | C3: Diverso da persona fisica | D3: 2000
A4: 2021-05-25 | C4: Contributo minimo | D4: =IF(Calcolo2!S8=C2,Riservato2!D2,Riservato2!D3) -> 1000 | G4: Ricavi > 10 mln | H4: =IF(ricavi2019_2>limite2,0,1) -> 1
A5: 2020-03-01 | G5: Attività cessata | H5: =IF(Calcolo2!Z11="SI",0,1) -> 1
A6: 2020-01-01 | G6: Attività iniziata dopo | H6: =IF(Calcolo2!Z14="SI",0,1) -> 1
A7: =IF(AND(Calcolo2!V20>=A6,ricavi2019_2<>0),1,0) -> 0 | C7: =Calcolo2!C27 -> Fatturato 01/04/2019 - 31/03/2020 | D7: =fatturato2019_2 -> 110000 | G7: Riduzione fatturato | H7: =IF(A9=1,1,IF(D12>=30%,1,0)) -> 1
A8: 2020-03-31 | C8: =Calcolo2!C30 -> Fatturato 01/04/2020 - 31/03/2021 | D8: =fatturato2020_2 -> 72000 | G8: Prodotto =====> | H8: =H4*H5*H6*H7 -> 1
A9: =IF(Calcolo2!V20>=A5,1,0) -> 0 | C9: =Calcolo1!C33 -> Mesi rilevanti | D9: =IF(Calcolo2!V20="",12,IF(Calcolo2!V20<=A8,VLOOKUP(MONTH(Calcolo2!V20),A52:B63,2,FALSE),0)) -> 12
A10: =Riservato1!A5 -> 2019-12-01 | C10: =Calcolo2!C36 -> Media mensile 2019/2020 | D10: =IFERROR(D7/D9,0) -> 9166.666667
C11: =Calcolo2!C39 -> Media mensile 2020/2021 | D11: =D8/12 -> 6000
C12: =Calcolo1!C42 -> Riduzione fatturato | D12: =IFERROR(-D11/D10+1,0) -> 0.3454545455 | E12: =IF(D12>=30%,1,0) -> 1
C14: **************** Soglie ricavi per aliquota (CONTRIBUTO GIÀ PERCEPITO) **************** | G14: **************** Determinazione del quantum (CONTRIBUTO GIÀ PERCEPITO) ****************
C15: 0 | D15: 100000 | E15: 0.6 | G15: Aliquota contributo | H15: =IF(ricavi2019_2>D19,0,IF(ricavi2019_2>D18,E19,IF(ricavi2019_2>D17,E18,IF(ricavi2019_2>D16,E17,IF(ricavi2019_2>D15,E16,E15))))) -> 0.5
C16: =D15 -> 100000 | D16: 400000 | E16: 0.5 | G16: Contributo potenziale | H16: =(D10-D11)*H15*E12 -> 1583.333333
C17: =D16 -> 400000 | D17: 1000000 | E17: 0.4 | G17: Limite minimo | H17: =IF(A9=1,D4,D4*E12) -> 1000
C18: =D17 -> 1000000 | D18: 5000000 | E18: 0.3 | G18: Contributo effettivo | H18: =MIN(MAX(H16,H17),150000) -> 1583.333333
C19: 5000000 | D19: 10000000 | E19: 0.2 | G19: di cui importo automatico | H19: =Calcolo2!V17 -> 1000
C21: **************** Soglie ricavi per aliquota (CONTRIBUTO NON PERCEPITO) **************** | G21: **************** Determinazione del quantum (CONTRIBUTO NON PERCEPITO) ****************
C22: =C15 -> 0 | D22: =D15 -> 100000 | E22: 0.9 | G22: Aliquota contributo | H22: =IF(ricavi2019_2>D26,0,IF(ricavi2019_2>D25,E26,IF(ricavi2019_2>D24,E25,IF(ricavi2019_2>D23,E24,IF(ricavi2019_2>D22,E23,E22))))) -> 0.7
C23: =C16 -> 100000 | D23: 400000 | E23: 0.7 | G23: Contributo potenziale | H23: =(D10-D11)*H22*E12 -> 2216.666667
C24: =C17 -> 400000 | D24: 1000000 | E24: 0.5 | G24: Limite minimo | H24: =H17 -> 1000
C25: =C18 -> 1000000 | D25: 5000000 | E25: 0.4 | G25: Contributo effettivo | H25: =MIN(MAX(H23,H24),150000) -> 2216.666667
C26: =C19 -> 5000000 | D26: 10000000 | E26: 0.3
C31: ***** Dati per macro *****
C32: =Elenco2!C4 -> Cliente | D32: =Elenco2!D4 -> Fatturato 19/20 | E32: =Elenco2!E4 -> Fatturato 20/21 | F32: =Elenco2!F4 -> Riduzione su dato mensile | G32: =Elenco2!G4 -> Spettanza contributo | H32: =Elenco2!H4 -> Misura contributo
C33: =Calcolo2!S5 -> Russo Giuseppe | D33: =D7 -> 110000 | E33: =D8 -> 72000 | F33: =D12 -> 0.3454545455 | G33: =IF(H8=0,"NO","SI") -> SI | H33: =IF(Calcolo2!V17=0,H25,H18) -> 1583.333333
C35: ***** Composizione della frase con l'esito del calcolo *****
C36: =IF(AND(Calcolo2!V17>0,H19>=H18),1,0) -> 0 | D36: ***** CONTROLLO CHE L'IMPORTO EFFETTIVO SIA SUPERIORE A QUELLO GIÀ PERCEPITO *****
C37: =IF(AND(H8=1,H18=H17),"Contributo fisso: € ",IF(AND(H8=1,H18=150000),"Contributo max: € ",IF(AND(H8=1,H15=E15),"Contributo 60%: € ",IF(AND(H8=1,H15=E16),"Contributo 50%: € ",IF(AND(H8=1,H15=E17),"Contributo 40%: € ",IF(AND(H8=1,H15=E18),"Contributo 30%: € ","Contributo 20%: € ")))))) -> Contributo 50%: €
C38: =IF(AND(H8=1,H24=H23),"Contributo fisso: € ",IF(AND(H8=1,H25=150000),"Contributo max: € ",IF(AND(H8=1,H22=E22),"Contributo 90%: € ",IF(AND(H8=1,H22=E23),"Contributo 70%: € ",IF(AND(H8=1,H22=E24),"Contributo 50%: € ",IF(AND(H8=1,H22=E25),"Contributo 40%: € ","Contributo 30%: € ")))))) -> Contributo 70%: €
A39: argomento CONCATENA () | C39: =IF(Calcolo2!V17=0,C38,C37)&TEXT(H33,"#.#0") -> Contributo 50%: € 1.583
C40: =", di cui importo automatico € "&TEXT(H19,"#.#0") -> , di cui importo automatico € 1.000
A41: argomento CONCATENA () | C41: =IF(AND(Calcolo2!V17>0,C36=0),C40,"") -> , di cui importo automatico € 1.000
A42: argomento CONCATENA () | C42: =IF(AND(Calcolo2!V17>0,C36=1,H18<>H19),", inferiore a quello automatico","") -> 
A43: argomento CONCATENA () | C43: =IF(AND(Calcolo2!V17>0,C36=1,H18=H19),", uguale a quello automatico","") -> 
B45: contrsi2 | C45: =IF(H8=1,B45,B46) -> contrsi2
B46: contrno2
A51: Mese
A52: 4 | B52: 11
A53: 5 | B53: 10
A54: 6 | B54: 9
A55: 7 | B55: 8
A56: 8 | B56: 7
A57: 9 | B57: 6
A58: 10 | B58: 5
A59: 11 | B59: 4
A60: 12 | B60: 3
A61: 1 | B61: 2
A62: 2 | B62: 1
A63: 3 | B63: 0
